bitfinex/quotes_BTCUSD_20220212
["timestamp","ask_amount","ask_price","bid_price","bid_amount"]
[1644688626809,0.001,42747.0,42746.0,1.66062405]
[1644688627007,0.001,42747.0,42746.0,1.84654374]
[1644688630053,0.001,42747.0,42746.0,1.93067082]
[1644688630256,0.001,42747.0,42746.0,1.24979051]
[1644688630855,0.001,42747.0,42746.0,1.25058786]
[1644688632403,0.00122918,42748.0,42746.0,1.30050486]
[1644688632604,0.00122918,42748.0,42746.0,1.35050486]
[1644688632907,0.00122918,42748.0,42747.0,0.18591969]
[1644688633204,0.001,42748.0,42747.0,0.22841969]
[1644688633405,0.001,42748.0,42747.0,0.51378501]
[1644688633606,0.001,42748.0,42747.0,0.50993392]
[1644688633806,0.001,42748.0,42747.0,0.60993392]
[1644688634207,0.00675708,42749.0,42748.0,0.05]
[1644688634408,0.006,42749.0,42748.0,0.160987]
[1644688634959,0.006,42749.0,42748.0,0.44052467]
[1644688635158,0.006,42749.0,42748.0,0.260987]
[1644688635662,0.006,42749.0,42748.0,0.54345227]
[1644688636058,0.006,42749.0,42748.0,0.260987]
[1644688636260,0.006,42749.0,42748.0,0.160987]
[1644688636958,0.006,42749.0,42748.0,0.44432274]
[1644688637359,0.006,42749.0,42748.0,0.54432274]
[1644688638166,0.006,42749.0,42748.0,1.20052274]
[1644688639017,0.006,42749.0,42748.0,1.20346136]
[1644688640221,0.006,42749.0,42748.0,1.20445592]
[1644688641721,0.006,42749.0,42748.0,0.91818156]
[1644688643460,4.375e-05,42749.0,42748.0,0.91818156]
[1644688643658,0.00262829,42751.0,42748.0,0.91818156]
[1644688643659,0.00262829,42751.0,42749.0,0.85]
[1644688643859,0.001,42754.0,42752.0,0.85]
[1644688644058,0.001,42754.0,42753.0,1.13386202]
[1644688644257,0.001,42754.0,42753.0,1.23386202]
[1644688644459,0.001,42754.0,42753.0,1.58507397]
[1644688644659,0.001,42754.0,42753.0,1.23641806]
[1644688645663,0.001,42754.0,42753.0,1.22641806]
[1644688648417,0.001,42754.0,42753.0,1.41226169]
[1644688650056,0.001,42754.0,42753.0,1.33575558]
[1644688650254,0.001,42754.0,42753.0,1.33674706]
[1644688650856,0.001,42754.0,42753.0,1.08553511]
[1644688651162,0.001,42754.0,42753.0,0.18683511]
[1644688651355,0.22725904,42750.0,42748.0,0.1661]
[1644688651558,0.22725904,42750.0,42748.0,0.1525]
[1644688651755,0.22725904,42750.0,42748.0,0.0525]
[1644688652156,0.06662667,42749.0,42744.0,0.10033484]
[1644688652356,0.06662667,42749.0,42744.0,0.116975]
[1644688652557,0.06662667,42749.0,42744.0,0.11750435]
[1644688652959,0.22725904,42750.0,42744.0,0.11750435]
[1644688653605,0.22725904,42750.0,42744.0,0.116975]
[1644688653808,0.22725904,42750.0,42744.0,0.16750434]
[1644688654005,0.22725904,42750.0,42744.0,0.21750434]
[1644688654207,0.22725904,42750.0,42744.0,0.29773276]
[1644688654506,0.22725904,42750.0,42744.0,0.58097262]
[1644688654705,0.22725904,42750.0,42744.0,0.29773276]
[1644688654906,0.22725904,42750.0,42744.0,0.39720342]
[1644688655106,0.22725904,42750.0,42744.0,0.39773276]
[1644688655306,0.22725904,42750.0,42745.0,0.110987]
[1644688658152,0.2270446,42750.0,42745.0,0.110987]
[1644688660356,0.2270446,42750.0,42746.0,0.05848]
[1644688660357,0.22727376,42750.0,42746.0,0.05848]
[1644688660555,0.2270446,42750.0,42747.0,0.0525]
[1644688660756,0.2270446,42750.0,42747.0,0.7087]
[1644688661006,0.22727376,42750.0,42747.0,0.7087]
[1644688661204,0.2270446,42750.0,42747.0,0.8087]
[1644688661708,0.22727376,42750.0,42747.0,0.8087]
[1644688662005,0.2270446,42750.0,42747.0,0.8087]
[1644688663005,0.22727376,42750.0,42747.0,0.8087]
[1644688663205,0.2270446,42750.0,42747.0,0.8087]
[1644688663605,0.22727376,42750.0,42747.0,0.8087]
[1644688663806,0.2270446,42750.0,42747.0,0.8087]
[1644688664106,0.2270446,42750.0,42748.0,0.2844933]
[1644688664307,0.2270446,42750.0,42749.0,0.0525]
[1644688667060,0.2170446,42750.0,42749.0,0.0525]
[1644688667457,0.2170446,42750.0,42749.0,0.33236111]
[1644688667857,0.2170446,42750.0,42749.0,0.43236111]
[1644688668058,0.2170446,42750.0,42749.0,0.1525]
[1644688668514,0.2170446,42750.0,42749.0,0.43887339]
[1644688670417,0.2170446,42750.0,42749.0,1.09507339]
[1644688670919,0.2170446,42750.0,42749.0,1.28092793]
[1644688672121,0.2170446,42750.0,42749.0,0.99455454]
[1644688672559,0.2170446,42750.0,42749.0,0.8087]
[1644688672760,0.2170446,42750.0,42749.0,0.99455454]
[1644688672958,0.2170446,42750.0,42749.0,0.8087]
[1644688673159,0.2170446,42750.0,42749.0,0.99455454]
[1644688673360,0.2170446,42750.0,42749.0,0.8087]
[1644688673559,0.2170446,42750.0,42749.0,0.99455454]
[1644688673759,0.2170446,42750.0,42749.0,0.8087]
[1644688673960,0.2170446,42750.0,42749.0,0.99455454]
[1644688674160,0.2170446,42750.0,42749.0,0.8087]
[1644688674363,0.2170446,42750.0,42749.0,0.99455454]
[1644688674561,0.2170446,42750.0,42749.0,0.8087]
[1644688674766,0.2170446,42750.0,42749.0,0.99455454]
[1644688675062,0.2170446,42750.0,42749.0,0.8087]
[1644688675263,0.2170446,42750.0,42749.0,0.99455454]
[1644688675462,0.2170446,42750.0,42749.0,0.8087]
[1644688675661,0.2170446,42750.0,42749.0,0.99455454]
[1644688675864,0.2170446,42750.0,42749.0,0.8087]
[1644688676105,0.2170446,42750.0,42749.0,0.99455454]
[1644688676304,0.2170446,42750.0,42749.0,0.8087]
[1644688676504,0.2170446,42750.0,42749.0,0.99455454]
[1644688676709,0.2170446,42750.0,42749.0,0.8087]
[1644688676905,0.2170446,42750.0,42749.0,0.99455454]
[1644688677204,0.2170446,42750.0,42749.0,0.8087]
[1644688677407,0.2170446,42750.0,42749.0,0.99455454]
[1644688677606,0.2170446,42750.0,42749.0,0.8087]
[1644688677806,0.2170446,42750.0,42749.0,0.99455454]
[1644688678005,0.2170446,42750.0,42749.0,0.8087]
[1644688678205,0.2170446,42750.0,42749.0,0.99455454]
[1644688678404,0.2170446,42750.0,42749.0,0.8087]
[1644688678608,0.2170446,42750.0,42749.0,0.99455454]
[1644688678905,0.2170446,42750.0,42749.0,0.8087]
[1644688679105,0.2170446,42750.0,42749.0,0.99455454]
[1644688679306,0.2170446,42750.0,42749.0,0.8087]
[1644688679507,0.2170446,42750.0,42749.0,0.99455454]
[1644688679769,0.2170446,42750.0,42749.0,0.8087]
[1644688680663,0.2170446,42750.0,42749.0,0.1525]
[1644688680861,0.2170446,42750.0,42749.0,0.0525]
[1644688685119,0.2170446,42750.0,42747.0,0.1]
[1644688685323,0.2120446,42750.0,42746.0,0.05]
[1644688685522,0.2120446,42750.0,42745.0,0.108487]
[1644688687263,0.2120446,42750.0,42746.0,0.06928142]
[1644688687457,0.21227376,42750.0,42746.0,0.06928142]
[1644688687859,0.2120446,42750.0,42746.0,0.06928142]
[1644688688056,0.2120446,42750.0,42747.0,0.0525]
[1644688688860,0.00022916,42752.0,42750.0,0.9694561]
[1644688689157,0.00022916,42752.0,42751.0,0.95849605]
[1644688689357,0.0031,42755.0,42752.0,0.85]
[1644688689557,0.00274921,42755.0,42754.0,0.6562]
[1644688689758,0.00274921,42755.0,42754.0,0.7087]
[1644688689958,0.00274921,42755.0,42754.0,0.8087]
[1644688690362,0.00274921,42755.0,42754.0,0.99455454]
[1644688691411,0.00274921,42755.0,42754.0,1.29049624]
[1644688694759,0.00274921,42755.0,42754.0,0.99455454]
[1644688695762,0.00274921,42755.0,42754.0,1.27620911]
[1644688696963,0.00153037,42757.0,42755.0,0.058459]
[1644688696966,0.001,42757.0,42755.0,0.058459]
[1644688697162,0.0028,42760.0,42757.0,0.01350766]
[1644688697362,0.0031,42764.0,42758.0,0.85]
[1644688697564,0.0031,42764.0,42760.0,0.6562]
[1644688697763,0.0031,42764.0,42761.0,0.0525]
[1644688697961,0.0031,42764.0,42761.0,0.11626229]
[1644688698163,0.0031,42764.0,42761.0,0.30211683]
[1644688698361,0.00463032,42763.0,42761.0,0.40211683]
[1644688699213,0.0041,42763.0,42761.0,0.40211683]
[1644688700210,0.0041,42763.0,42761.0,0.33835454]
[1644688700511,0.0041,42763.0,42761.0,0.23835454]
[1644688700715,0.0041,42763.0,42761.0,0.33835454]
[1644688702554,0.0041,42763.0,42761.0,0.1525]
[1644688703154,0.0041,42763.0,42761.0,0.0525]
[1644688705857,0.0021,42762.0,42761.0,0.0525]
[1644688706506,0.0031,42763.0,42762.0,0.92383464]
[1644688706706,0.0031,42763.0,42762.0,0.4596301]
[1644688706906,0.0031,42763.0,42762.0,0.5596301]
[1644688707207,0.00229764,42764.0,42763.0,0.35]
[1644688707406,0.00229764,42764.0,42763.0,0.5025]
[1644688707706,0.0021,42764.0,42763.0,0.78648186]
[1644688708306,0.0021,42764.0,42763.0,0.97227732]
[1644688708706,0.00147695,42764.0,42763.0,1.05082549]
[1644688709507,0.00176246,42766.0,42763.0,1.05082549]
[1644688709508,0.002,42768.0,42765.0,0.058456]
[1644688709766,0.002,42768.0,42767.0,0.6562]
[1644688709962,0.002,42771.0,42768.0,0.85]
[1644688710259,0.002,42771.0,42770.0,0.28275527]
[1644688710459,0.002,42771.0,42770.0,0.33525527]
[1644688710864,0.002,42771.0,42770.0,0.43525527]
[1644688711468,0.002,42771.0,42770.0,1.39145527]
[1644688711664,0.00192688,42771.0,42770.0,1.09145527]
[1644688711864,0.0011,42776.0,42771.0,0.75]
[1644688712066,0.0011,42776.0,42772.0,0.0525]
[1644688712264,0.0011,42776.0,42772.0,0.227851]
[1644688712565,0.0011,42776.0,42773.0,0.058453]
[1644688712764,0.0011,42776.0,42774.0,0.0525]
[1644688713813,0.0011,42776.0,42774.0,0.169397]
[1644688716320,0.50819099,42773.0,42772.0,0.175351]
[1644688716515,0.50819099,42773.0,42771.0,0.24424546]
[1644688716813,0.05,42772.0,42766.0,0.058476]
[1644688717013,0.50819099,42773.0,42766.0,0.058476]
[1644688717014,0.05,42771.0,42766.0,0.058476]
[1644688717656,0.05053367,42771.0,42766.0,0.058476]
[1644688718556,0.50819099,42773.0,42766.0,0.058476]
[1644688718758,0.00053367,42771.0,42766.0,0.058476]
[1644688719157,0.00053367,42771.0,42769.0,0.07037282]
[1644688719760,0.55819099,42773.0,42768.0,0.058458]
[1644688719959,0.05,42770.0,42766.0,0.058476]
[1644688720564,0.00053366,42772.0,42766.0,0.058476]
[1644688720761,0.50372465,42773.0,42767.0,0.06703368]
[1644688721025,0.50372465,42773.0,42768.0,0.05846]
[1644688721231,0.00053367,42771.0,42768.0,0.05846]
[1644688721631,0.50372465,42773.0,42769.0,0.9025]
[1644688721828,0.50372465,42773.0,42770.0,0.6562]
[1644688722027,0.4776107,42773.0,42771.0,0.169398]
[1644688722227,0.1269577,42773.0,42771.0,0.169398]
[1644688722627,0.0011,42776.0,42773.0,0.5]
[1644688722831,0.0011,42776.0,42774.0,0.0525]
[1644688723232,0.0011,42776.0,42774.0,0.110948]
[1644688723833,0.05,42785.0,42774.0,0.0525]
[1644688724235,0.05,42785.0,42774.0,0.110948]
[1644688724432,0.05,42785.0,42779.0,0.21946354]
[1644688724635,0.05,42785.0,42780.0,0.0525]
[1644688725062,0.00022883,42785.0,42780.0,0.0525]
[1644688725261,0.954006,42786.0,42780.0,0.0525]
[1644688725460,0.00022883,42785.0,42780.0,0.0525]
[1644688725658,0.954006,42786.0,42780.0,0.0525]
[1644688725861,0.00022883,42785.0,42780.0,0.169401]
[1644688726062,0.00022883,42785.0,42780.0,0.43039419]
[1644688726063,0.00053356,42785.0,42780.0,0.43039419]
[1644688726360,0.00076239,42785.0,42780.0,0.43039419]
[1644688726965,0.00022883,42785.0,42780.0,0.43039419]
[1644688727163,0.00076239,42785.0,42780.0,0.43039419]
[1644688727365,0.05,42783.0,42780.0,0.43039419]
[1644688727764,0.00022883,42784.0,42780.0,0.43039419]
[1644688727964,0.00076239,42785.0,42780.0,0.43039419]
[1644688728166,0.035,42783.0,42780.0,0.43039419]
[1644688728507,0.035,42783.0,42780.0,0.169401]
[1644688729106,0.27248618,42782.0,42780.0,0.169401]
[1644688729906,0.27271501,42782.0,42780.0,0.169401]
[1644688731809,0.27027294,42782.0,42780.0,0.169401]
[1644688732008,0.27004411,42782.0,42780.0,0.169401]
[1644688732266,0.27027294,42782.0,42780.0,0.116901]
[1644688732455,0.00022883,42782.0,42780.0,0.116901]
[1644688732656,0.00072511,42783.0,42780.0,0.116901]
[1644688732955,0.00022883,42783.0,42780.0,0.116901]
[1644688733155,0.0357251,42784.0,42780.0,0.116901]
[1644688733355,0.00022883,42783.0,42780.0,0.116901]
[1644688733556,0.0357251,42784.0,42780.0,0.116901]
[1644688734156,0.03522883,42784.0,42780.0,0.116901]
[1644688734357,0.0357251,42784.0,42780.0,0.116901]
[1644688735355,0.03522883,42784.0,42780.0,0.116901]
[1644688735556,0.03572814,42784.0,42780.0,0.116901]
[1644688735756,0.03549931,42784.0,42780.0,0.116901]
[1644688736004,0.03072814,42784.0,42780.0,0.116901]
[1644688736204,0.03037759,42784.0,42780.0,0.116901]
[1644688736605,0.03022883,42784.0,42780.0,0.116901]
[1644688737208,0.29367145,42784.0,42780.0,0.116901]
[1644688740158,0.03022883,42784.0,42780.0,0.116901]
[1644688740355,1.241,42785.0,42780.0,0.116901]
[1644688740557,0.25867183,42784.0,42780.0,0.116901]
[1644688740958,1.49967183,42784.0,42779.0,0.05845]
[1644688741158,1.241,42784.0,42779.0,0.05845]
[1644688741358,0.02522883,42782.0,42779.0,0.05845]
[1644688743506,0.26159711,42783.0,42779.0,0.05845]
[1644688743706,0.02022883,42781.0,42779.0,0.05845]
[1644688744307,0.26159711,42783.0,42779.0,0.05845]
[1644688744507,0.01522883,42781.0,42779.0,0.05845]
[1644688744710,0.27682594,42783.0,42779.0,0.05845]
[1644688745108,0.01522883,42780.0,42779.0,0.05845]
[1644688745308,0.29417582,42780.0,42779.0,0.05845]
[1644688745608,1.53517582,42780.0,42779.0,0.05845]
[1644688746008,0.27894699,42780.0,42779.0,0.05845]
[1644688746509,0.29681769,42776.0,42774.0,0.11692]
[1644688746908,0.01522883,42780.0,42774.0,0.11692]
[1644688747357,1.241,42779.0,42774.0,0.11692]
[1644688747554,0.19440905,42776.0,42774.0,0.11692]
[1644688750456,0.26239859,42775.0,42774.0,0.11692]
[1644688750657,0.18440905,42776.0,42774.0,0.11692]
[1644688752316,0.17856498,42776.0,42774.0,0.11692]
[1644688752917,0.26161043,42775.0,42774.0,0.11692]
[1644688758359,1.50261043,42775.0,42774.0,0.11692]
[1644688758608,1.241,42775.0,42774.0,0.11692]
[1644688759411,1.42825672,42775.0,42774.0,0.11692]
[1644688760112,1.23838383,42775.0,42774.0,0.11692]
[1644688761221,0.24808288,42774.0,42772.0,0.00049456]
[1644688761413,0.28529454,42773.0,42772.0,0.00049456]
[1644688761710,1.67057911,42773.0,42765.0,0.05]
[1644688761910,0.25480786,42767.0,42766.0,0.116951]
[1644688762110,0.52531486,42767.0,42765.0,0.058475]
[1644688762373,0.52531486,42767.0,42757.0,0.116944]
[1644688762374,0.52531486,42767.0,42757.0,0.18572929]
[1644688762375,1.53838383,42766.0,42757.0,0.18572929]
[1644688762569,0.01522883,42764.0,42756.0,0.54119529]
[1644688762770,1.23838383,42763.0,42756.0,0.54119529]
[1644688762972,1.23848457,42763.0,42758.0,0.058485]
[1644688763168,0.07779541,42761.0,42758.0,0.058485]
[1644688763369,0.07789615,42761.0,42758.0,0.058485]
[1644688764672,0.27327195,42760.0,42758.0,0.058485]
[1644688764872,0.27337269,42760.0,42758.0,0.05146297]
[1644688765271,0.00010074,42760.0,42758.0,0.05146297]
[1644688765475,0.26414183,42760.0,42758.0,0.05146297]
[1644688765671,0.26298693,42760.0,42758.0,0.05146297]
[1644688766712,0.07779541,42761.0,42758.0,0.05146297]
[1644688766911,0.07789615,42761.0,42758.0,0.05146297]
[1644688767311,0.00010074,42761.0,42758.0,0.05146297]
[1644688768914,0.26955135,42761.0,42758.0,0.05146297]
[1644688769766,0.21700569,42760.0,42758.0,0.05146297]
[1644688769962,0.26705225,42759.0,42758.0,0.05146297]
[1644688770161,0.26705225,42759.0,42758.0,0.03605663]
[1644688770162,0.26715299,42759.0,42758.0,0.03605663]
[1644688771564,0.00010074,42759.0,42758.0,0.03605663]
[1644688775307,1.47483459,42759.0,42758.0,0.03605663]
[1644688778960,1.24110074,42759.0,42758.0,0.03605663]
[1644688779961,0.07211325,42757.0,42756.0,0.23439973]
[1644688780160,0.07221399,42757.0,42756.0,0.23439973]
[1644688781005,0.07221399,42757.0,42756.0,0.233866]
[1644688788363,0.07221399,42757.0,42756.0,0.26863717]
[1644688788809,0.07221399,42757.0,42756.0,0.23234601]
[1644688789013,0.07221399,42757.0,42756.0,0.26711718]
[1644688789413,0.07221399,42757.0,42756.0,0.23234601]
[1644688789809,0.07221399,42757.0,42756.0,0.26711718]
[1644688790010,0.07221399,42757.0,42756.0,0.23234601]
[1644688790809,0.26550687,42757.0,42756.0,0.23234601]
[1644688792561,0.07221399,42757.0,42756.0,0.26711718]
[1644688792961,1.31321399,42757.0,42756.0,0.26711718]
[1644688793364,1.31321399,42757.0,42756.0,0.23234601]
[1644688793562,1.31321399,42757.0,42756.0,0.26711718]
[1644688793761,1.31321399,42757.0,42756.0,0.23234601]
[1644688795763,0.07221399,42757.0,42756.0,0.23234601]
[1644688797609,0.07221399,42757.0,42756.0,0.26711718]
[1644688798209,0.07221399,42757.0,42756.0,0.23234601]
[1644688800265,0.07221399,42757.0,42756.0,0.26711718]
[1644688800666,0.07221399,42757.0,42756.0,0.23234601]
[1644688800867,0.03781451,42770.0,42757.0,0.85]
[1644688801068,1.28857215,42775.0,42768.0,0.03477117]
[1644688801069,0.00022824,42775.0,42768.0,0.03477117]
[1644688801267,0.015,42783.0,42771.0,0.03456771]
[1644688801268,0.06583815,42776.0,42771.0,0.03456771]
[1644688801471,0.00022824,42776.0,42771.0,0.03456771]
[1644688801666,0.00022824,42777.0,42772.0,0.0468]
[1644688801867,0.00022824,42780.0,42772.0,0.0468]
[1644688802071,1.43047577,42781.0,42772.0,0.0468]
[1644688802366,0.00022824,42780.0,42776.0,0.00181873]
[1644688802565,0.00022824,42780.0,42772.0,0.0468]
[1644688802765,0.18947577,42781.0,42773.0,0.00034064]
[1644688802965,0.00022824,42780.0,42773.0,0.10560064]
[1644688803166,1.43047577,42781.0,42773.0,0.10560064]
[1644688803367,0.00022824,42780.0,42773.0,0.10560064]
[1644688803618,0.07096011,42776.0,42773.0,0.10560064]
[1644688803819,0.00022824,42780.0,42776.0,0.00181873]
[1644688804020,0.015,42783.0,42777.0,0.0468]
[1644688804021,0.00022824,42781.0,42777.0,0.0468]
[1644688804221,0.00022824,42782.0,42778.0,0.09302471]
[1644688804418,0.015,42783.0,42781.0,0.03456771]
[1644688804621,0.00022824,42782.0,42779.0,0.0468]
[1644688804819,0.01522824,42783.0,42779.0,0.0468]
[1644688805020,0.00022824,42782.0,42779.0,0.222142]
[1644688805221,0.015,42783.0,42779.0,0.222142]
[1644688805421,0.00022824,42782.0,42781.0,0.00181873]
[1644688805620,0.015,42783.0,42779.0,0.25670971]
[1644688805621,0.01522824,42783.0,42779.0,0.25670971]
[1644688805822,0.015,42783.0,42779.0,0.25670971]
[1644688806020,0.015,42783.0,42779.0,0.222142]
[1644688806221,0.015,42783.0,42782.0,0.03456771]
[1644688806421,0.015,42783.0,42782.0,0.37236068]
[1644688807022,0.015,42783.0,42782.0,0.37417941]
[1644688807273,0.015,42783.0,42782.0,0.08318644]
[1644688807866,0.00022824,42784.0,42782.0,0.09483144]
[1644688808165,0.002,42785.0,42783.0,0.0524]
[1644688808166,0.00222824,42785.0,42783.0,0.0524]
[1644688808368,0.00022824,42784.0,42783.0,0.0524]
[1644688808566,0.00222824,42785.0,42783.0,0.0524]
[1644688808768,0.25507623,42796.0,42784.0,0.9]
[1644688808973,0.25507623,42796.0,42794.0,0.03456771]
[1644688808974,0.00077939,42795.0,42794.0,0.03456771]
[1644688809168,0.00077939,42795.0,42794.0,0.80371771]
[1644688809169,9.39e-06,42795.0,42794.0,0.80371771]
[1644688809366,0.65900077,42795.0,42794.0,0.80611771]
[1644688809566,0.30847277,42795.0,42794.0,0.77155]
[1644688809966,0.30847277,42795.0,42794.0,0.24290152]
[1644688810466,0.00627668,42796.0,42794.0,0.27746923]
[1644688810667,0.00627668,42796.0,42794.0,0.2756505]
[1644688810867,0.00183988,42796.0,42794.0,0.2756505]
[1644688811116,0.327936,42795.0,42794.0,0.2756505]
[1644688811311,0.00127668,42796.0,42794.0,0.2756505]
[1644688811512,0.00127668,42796.0,42794.0,0.27746923]
[1644688811711,0.00127668,42796.0,42794.0,0.2756505]
[1644688811912,0.00127668,42796.0,42794.0,0.24108279]
[1644688812111,0.327936,42795.0,42794.0,0.24108279]
[1644688812515,0.00127668,42796.0,42794.0,0.11655]
[1644688812711,0.00127668,42796.0,42794.0,0.0524]
[1644688813221,0.01795122,42801.0,42794.0,0.0524]
[1644688813222,0.002,42806.0,42797.0,0.85]
[1644688813418,0.327936,42805.0,42798.0,0.0524]
[1644688813812,0.327936,42805.0,42798.0,0.23807256]
[1644688814011,0.06324621,42804.0,42798.0,0.23807256]
[1644688814212,0.06324621,42804.0,42798.0,0.11082]
[1644688814413,0.327936,42803.0,42798.0,0.11082]
[1644688814769,0.327936,42803.0,42798.0,0.110822]
[1644688816163,0.06324621,42804.0,42800.0,0.00181873]
[1644688816364,0.06324621,42804.0,42798.0,0.110822]
[1644688816565,0.322936,42803.0,42798.0,0.110822]
[1644688817472,1.58436629,42801.0,42792.0,0.18567256]
[1644688817667,1.58436629,42801.0,42800.0,0.00181873]
[1644688817864,1.58436629,42801.0,42792.0,0.18567256]
[1644688817865,0.327934,42797.0,42791.0,0.00053557]
[1644688818066,0.322934,42797.0,42791.0,0.00053557]
[1644688818267,0.322934,42797.0,42789.0,0.307674]
[1644688818517,0.322934,42797.0,42791.0,0.00053557]
[1644688818720,0.00363745,42798.0,42796.0,0.03456771]
[1644688819119,0.00363745,42798.0,42792.0,0.0524]
[1644688819518,0.327936,42797.0,42795.0,0.116846]
[1644688819719,0.327936,42796.0,42795.0,0.116846]
[1644688822768,0.09013672,42798.0,42795.0,0.116846]
[1644688823364,0.327936,42797.0,42795.0,0.116846]
[1644688823564,0.00363745,42798.0,42795.0,0.116846]
[1644688823764,0.327936,42797.0,42795.0,0.116846]
[1644688823963,0.32816399,42797.0,42795.0,0.116846]
[1644688824164,0.327936,42796.0,42795.0,0.116846]
[1644688824365,0.00022799,42797.0,42795.0,0.116846]
[1644688824565,0.327936,42797.0,42795.0,0.116846]
[1644688824865,0.327936,42796.0,42795.0,0.116846]
[1644688825466,0.00022799,42797.0,42795.0,0.116846]
[1644688825664,0.00386544,42798.0,42795.0,0.116846]
[1644688825865,0.00022799,42797.0,42795.0,0.116846]
[1644688826114,0.00386544,42798.0,42795.0,0.116846]
[1644688826515,0.327936,42797.0,42795.0,0.116846]
[1644688826717,0.327936,42796.0,42795.0,0.116846]
[1644688826913,0.00022799,42797.0,42795.0,0.116846]
[1644688827114,0.327936,42797.0,42795.0,0.116846]
[1644688827315,0.32816399,42797.0,42795.0,0.116846]
[1644688827613,0.327936,42796.0,42795.0,0.116846]
[1644688827818,0.5920391,42796.0,42795.0,0.116846]
[1644688828014,0.2641031,42796.0,42795.0,0.116846]
[1644688830566,0.2801031,42796.0,42795.0,0.116846]
[1644688831166,0.28655805,42796.0,42795.0,0.116846]
[1644688831567,0.35039095,42796.0,42795.0,0.116846]
[1644688831766,0.02245495,42796.0,42795.0,0.116846]
[1644688832066,0.35039095,42796.0,42795.0,0.116846]
[1644688832466,0.016,42796.0,42795.0,0.175278]
[1644688833719,0.343936,42796.0,42795.0,0.175278]
[1644688833919,0.016,42796.0,42795.0,0.175278]
[1644688834220,0.343936,42796.0,42795.0,0.116846]
[1644688834419,0.016,42796.0,42795.0,0.116846]
[1644688834620,0.343936,42796.0,42795.0,0.116846]
[1644688834822,0.016,42796.0,42795.0,0.116846]
[1644688836620,0.343936,42796.0,42795.0,0.116846]
[1644688837287,1.584936,42796.0,42795.0,0.116846]
[1644688837477,1.584936,42796.0,42795.0,0.04231535]
[1644688837678,1.584936,42796.0,42794.0,0.17528]
[1644688837679,0.327936,42795.0,42791.0,0.00053663]
[1644688837880,0.327936,42793.0,42791.0,0.00053663]
[1644688838183,0.46983438,42792.0,42791.0,0.00053663]
[1644688838380,0.66116554,42792.0,42791.0,0.00053663]
[1644688838780,0.66116554,42792.0,42789.0,0.007674]
[1644688839080,0.327936,42791.0,42789.0,0.00571506]
[1644688839280,0.52816399,42791.0,42789.0,0.00571506]
[1644688839480,0.327936,42790.0,42789.0,0.00571506]
[1644688839980,0.27827749,42781.0,42777.0,0.03456771]
[1644688840281,0.27827749,42781.0,42780.0,0.036998]
[1644688840679,0.27827749,42781.0,42780.0,0.011998]
[1644688841516,0.18427749,42781.0,42780.0,0.011998]
[1644688841817,0.18427749,42781.0,42780.0,0.012008]
[1644688842016,0.18427749,42781.0,42778.0,0.058455]
[1644688842419,0.18427749,42781.0,42778.0,0.05899118]
[1644688843220,0.18427749,42781.0,42778.0,0.09355889]
[1644688843424,0.18427749,42781.0,42778.0,0.09302271]
[1644688843620,0.18427749,42781.0,42778.0,0.0935589]
[1644688844023,0.18427749,42781.0,42779.0,0.228792]
[1644688844324,0.24373116,42792.0,42780.0,0.03456771]
[1644688844325,0.30022799,42791.0,42780.0,0.03456771]
[1644688844523,0.00022799,42790.0,42784.0,0.03456771]
[1644688844771,0.3,42791.0,42784.0,0.03456771]
[1644688844772,0.00022799,42791.0,42784.0,0.03456771]
[1644688844966,0.32816999,42790.0,42784.0,0.03456771]
[1644688845167,0.20245459,42794.0,42782.0,0.05844]
[1644688845168,0.30022799,42793.0,42782.0,0.05844]
[1644688845369,0.39821468,42792.0,42783.0,0.03456771]
[1644688845567,0.327942,42791.0,42783.0,0.03456771]
[1644688845767,0.07050067,42792.0,42783.0,0.03456771]
[1644688845971,0.00022799,42791.0,42783.0,0.03456771]
[1644688846168,0.07027268,42792.0,42785.0,0.00053613]
[1644688846368,0.00022799,42791.0,42785.0,0.00053613]
[1644688846569,0.327942,42791.0,42785.0,0.00053613]
[1644688846767,0.32816999,42791.0,42785.0,0.00053613]
[1644688846967,0.00022799,42791.0,42785.0,0.00053613]
[1644688847167,0.07027268,42792.0,42783.0,0.03456771]
[1644688847367,0.20245459,42794.0,42787.0,0.05844]
[1644688847368,0.00022799,42791.0,42787.0,0.05844]
[1644688847568,0.00022799,42792.0,42787.0,0.116877]
[1644688847769,0.00022799,42793.0,42788.0,0.175307]
[1644688847970,0.00668566,42794.0,42788.0,0.175307]
[1644688848170,0.00022799,42793.0,42788.0,0.175307]
[1644688848520,0.08790669,42794.0,42789.0,0.0005361]
[1644688848716,0.00022799,42793.0,42789.0,0.0005361]
[1644688848916,0.08790669,42794.0,42789.0,0.0005361]
[1644688849116,0.00022799,42793.0,42789.0,0.0005361]
[1644688849316,0.08790669,42794.0,42789.0,0.0005361]
[1644688849519,0.00022799,42793.0,42788.0,0.175307]
[1644688849717,0.00668566,42794.0,42789.0,0.0005361]
[1644688849918,0.00645767,42794.0,42789.0,0.0005361]
[1644688850517,0.00645767,42794.0,42789.0,0.03510381]
[1644688850720,0.00645767,42794.0,42789.0,0.03456771]
[1644688851326,0.00645767,42794.0,42788.0,0.175307]
[1644688852378,0.00645767,42794.0,42789.0,0.03456771]
[1644688853177,0.00363745,42798.0,42789.0,0.03456771]
[1644688853178,0.00363745,42798.0,42793.0,0.03456771]
[1644688853378,0.00363745,42798.0,42794.0,0.070412]
[1644688853577,0.00363745,42798.0,42795.0,0.175279]
[1644688854978,0.44958231,42803.0,42795.0,0.175279]
[1644688855179,0.19868489,42802.0,42795.0,0.175279]
[1644688855579,0.25089742,42803.0,42795.0,0.175279]
[1644688855780,0.44958231,42803.0,42795.0,0.175279]
[1644688856433,0.07747041,42799.0,42795.0,0.175279]
[1644688856628,0.44958231,42803.0,42795.0,0.175279]
[1644688856832,0.25089742,42803.0,42795.0,0.175279]
[1644688857029,0.44958231,42803.0,42795.0,0.175279]
[1644688857230,0.22558591,42799.0,42795.0,0.175279]
[1644688857631,0.22558591,42799.0,42795.0,0.17723794]
[1644688857832,0.327942,42799.0,42795.0,0.17723794]
[1644688858232,0.327942,42798.0,42795.0,0.17723794]
[1644688858432,0.327942,42799.0,42795.0,0.17723794]
[1644688858632,0.06606884,42800.0,42795.0,0.182953]
[1644688858832,0.21365096,42799.0,42795.0,0.182953]
[1644688859434,0.21365096,42799.0,42795.0,0.18348851]